bitfinex-derivatives/quotes_BNBF0:USTF0_20250331
["timestamp","ask_amount","ask_price","bid_price","bid_amount"]
[1743400378356,1.38501011,603.08,602.25,0.332088]
[1743400379862,1.94569576,603.09,602.25,0.332088]
[1743400380163,1.012,603.1,602.25,0.332088]
[1743400380865,2.1331876,603.1,602.25,0.332088]
[1743400381163,1.012,603.1,602.25,0.332088]
[1743400387163,2.1331876,603.1,602.25,0.332088]
[1743400387358,4.3462129,603.1,602.25,0.332088]
[1743400387564,2.2130253,603.09,602.25,0.332088]
[1743400387764,1.94702669,603.09,602.25,0.332088]
[1743400388063,1.012,603.1,602.25,0.332088]
[1743400388256,1.012,603.1,602.26,0.2859595]
[1743400388460,1.012,603.1,602.27,0.33207697]
[1743400388663,1.012,603.1,602.28,0.2859595]
[1743400388859,1.012,603.1,602.29,0.33206594]
[1743400389665,3.2250253,603.1,602.29,0.33206594]
[1743400389966,2.2130253,603.09,602.29,0.33206594]
[1743400390158,5.44452312,603.1,602.29,0.33206594]
[1743400390359,0.82583909,603.09,602.29,0.33206594]
[1743400390566,3.74092686,603.09,602.29,0.33206594]
[1743400390766,1.38718621,603.08,602.29,0.33206594]
[1743400390964,2.2130253,603.08,602.29,0.33206594]
[1743400391166,4.4333587,603.08,602.29,0.33206594]
[1743400391367,2.2130253,603.07,602.29,0.33206594]
[1743400391567,1.94702669,603.09,602.29,0.33206594]
[1743400391768,1.1211876,603.09,602.29,0.33206594]
[1743400392165,1.012,603.1,602.29,0.33206594]
[1743400392669,1.012,603.1,602.3,0.28572175]
[1743400393169,1.012,603.1,602.29,0.33206594]
[1743400393370,1.012,603.1,602.31,0.28564791]
[1743400393665,1.012,603.1,602.32,0.61769731]
[1743400393871,1.012,603.1,602.33,0.28564791]
[1743400394063,1.012,603.1,602.34,0.33203838]
[1743400394267,1.012,603.1,602.35,0.28564791]
[1743400394466,1.012,603.1,602.36,0.33202735]
[1743400394664,1.012,603.1,602.37,0.28564791]
[1743400394867,1.012,603.1,602.38,0.33201633]
[1743400395068,1.012,603.1,602.39,0.28564791]
[1743400395266,1.012,603.1,602.4,0.33200531]
[1743400402574,1.012,603.1,602.41,0.28569053]
[1743400402777,1.012,603.1,602.42,0.33199428]
[1743400402978,1.012,603.1,602.43,0.28571047]
[1743400403178,1.012,603.1,602.44,0.33198326]
[1743400403379,1.012,603.1,602.45,0.28571047]
[1743400403978,1.012,603.1,602.46,0.61765476]
[1743400404180,1.012,603.1,602.47,0.33196673]
[1743400404376,1.012,603.1,602.48,0.28568252]
[1743400404580,1.012,603.1,602.49,0.33195571]
[1743400404781,1.012,603.1,602.5,0.28568252]
[1743400408385,1.012,603.1,602.49,0.33195571]
[1743400417593,1.30092256,603.1,602.49,0.33195571]
[1743400419296,1.012,603.1,602.49,0.33195571]
[1743400419799,1.3007835,603.1,602.49,0.33195571]
[1743400422205,1.012,603.1,602.49,0.33195571]
[1743400423002,2.13038229,603.1,602.49,0.33195571]
[1743400423602,1.30093096,603.1,602.49,0.33195571]
[1743400425005,1.012,603.1,602.49,0.33195571]
[1743400425605,0.28876313,603.2,602.49,0.33195571]
[1743400426305,4.75663351,603.19,601.1,2.52044129]
[1743400426500,0.99080726,602.93,601.2,0.33266799]
[1743400426700,2.51441608,602.92,601.74,0.28902334]
[1743400426903,2.20925095,602.91,601.74,0.28902334]
[1743400427104,2.51440979,602.9,601.2,0.33266799]
[1743400427307,1.68970283,602.89,601.21,0.28673472]
[1743400427501,0.30515884,602.88,601.23,0.33265139]
[1743400427701,0.30515884,602.88,601.49,2.52044129]
[1743400428007,1.11838229,602.87,601.51,0.33249655]
[1743400428203,3.20808925,602.87,601.51,0.33249655]
[1743400428503,0.30515884,602.86,601.52,0.28673472]
[1743400428704,3.56179306,602.86,601.53,0.33248549]
[1743400428909,0.30515884,602.85,601.54,0.28673472]
[1743400429104,3.82795476,602.85,601.55,0.33247444]
[1743400429410,1.42354113,602.84,601.55,0.33247444]
[1743400429609,0.30515884,602.83,601.55,0.33247444]
[1743400429811,0.82240459,602.83,601.55,0.33247444]
[1743400430003,8.63234236,602.83,601.55,0.33247444]
[1743400430203,5.72454841,602.82,601.55,0.33247444]
[1743400430402,2.13825193,602.81,601.55,0.33247444]
[1743400430606,3.73019854,602.81,601.55,0.33247444]
[1743400430806,3.58629648,602.8,601.55,0.33247444]
[1743400431013,5.72454841,602.8,601.55,0.33247444]
[1743400431204,3.25663422,602.79,601.55,0.33247444]
[1743400431402,6.8429307,602.79,601.55,0.33247444]
[1743400431608,5.72454841,602.78,601.55,0.33247444]
[1743400431809,5.72454841,602.77,601.55,0.33247444]
[1743400432110,5.72454841,602.76,601.55,0.33247444]
[1743400432310,5.04604588,602.75,601.56,0.28674623]
[1743400432510,3.58629648,602.74,601.57,0.33246338]
[1743400432712,5.72454841,602.74,601.58,0.28674623]
[1743400433011,1.94078688,602.73,601.59,0.33245233]
[1743400433210,5.52708336,602.73,601.59,0.33245233]
[1743400433515,0.82240459,602.72,601.59,0.33245233]
[1743400433711,2.20174939,602.72,601.59,0.33245233]
[1743400433907,3.02106636,602.72,601.59,0.33245233]
[1743400434106,2.19866177,602.72,601.59,0.33245233]
[1743400434305,3.31704406,602.86,601.59,0.33245233]
[1743400434504,2.49772709,602.86,601.59,0.33245233]
[1743400434702,1.11838229,602.86,601.59,0.33245233]
[1743400435109,1.265,602.87,601.59,0.33245233]
[1743400435504,0.28918426,602.85,601.59,0.33245233]
[1743400437206,1.265,602.87,601.59,0.33245233]
[1743400438614,0.28920469,602.86,601.59,0.33245233]
[1743400439415,5.98917407,602.86,601.59,0.33245233]
[1743400439614,2.12854022,602.85,601.59,0.33245233]
[1743400439915,5.03633417,602.85,601.59,0.33245233]
[1743400440110,3.57142916,602.84,601.59,0.33245233]
[1743400440314,1.11838229,602.83,601.59,0.33245233]
[1743400440609,3.3106782,602.83,601.59,0.33245233]
[1743400440814,3.3106782,602.83,601.6,0.28666313]
[1743400441014,2.19229591,602.83,601.62,0.33243575]
[1743400441215,3.3106782,602.86,601.62,0.33243575]
[1743400441615,0.28898614,602.82,601.62,0.33243575]
[1743400446215,3.3106782,602.86,601.62,0.33243575]
[1743400447522,0.28920709,602.85,601.62,0.33243575]
[1743400449421,3.30843097,602.86,601.62,0.33243575]
[1743400450421,0.81629112,602.85,601.62,0.33243575]
[1743400450618,1.10547623,602.85,601.62,0.33243575]
[1743400450818,0.28919628,602.85,601.62,0.33243575]
[1743400451818,2.41152415,602.85,601.62,0.33243575]
[1743400452021,0.30515757,602.84,601.63,0.28673801]
[1743400452218,1.12143752,602.84,601.63,0.28673801]
[1743400452424,0.30515757,602.83,601.64,0.3324247]
[1743400452626,2.71650278,602.83,601.65,0.28673801]
[1743400452825,0.30515757,602.82,601.66,0.33241365]
[1743400453320,0.30516218,602.81,601.66,0.33241365]
[1743400453725,2.42749005,602.81,601.67,0.28674254]
[1743400453926,0.30516218,602.8,601.68,0.3324026]
[1743400454122,2.42749005,602.8,601.68,0.3324026]
[1743400454325,0.30516218,602.79,601.69,0.28673827]
[1743400454525,1.12144213,602.79,601.69,0.28673827]
[1743400454821,0.30516218,602.78,601.69,0.28673827]
[1743400455021,2.42749005,602.78,601.69,0.28673827]
[1743400455227,0.30516218,602.77,601.69,0.28673827]
[1743400455527,5.335284,602.77,601.69,0.28673827]
[1743400455727,5.98698074,602.76,601.69,0.28673827]
[1743400455927,2.42749005,602.75,601.69,0.28673827]
[1743400456124,0.30516218,602.74,601.69,0.28673827]
[1743400456325,1.12144213,602.74,601.69,0.28673827]
[1743400456526,0.30516218,602.73,601.69,0.28673827]
[1743400456726,2.7165362,602.73,601.69,0.28673827]
[1743400456928,0.30517709,602.72,601.7,0.28675732]
[1743400457128,1.12145704,602.72,601.69,0.28675732]
[1743400457322,0.30517709,602.71,601.69,0.28675732]
[1743400457521,5.98699565,602.71,601.69,0.28675732]
[1743400457721,2.42750496,602.7,601.69,0.28675732]
[1743400457922,0.30517709,602.69,601.69,0.28675732]
[1743400458225,1.12145704,602.69,601.69,0.28675732]
[1743400458425,0.30517709,602.68,601.69,0.28675732]
[1743400458628,2.71655711,602.68,601.69,0.28675732]
[1743400458827,2.71655711,602.68,601.68,0.3324026]
[1743400458828,0.30517709,602.67,601.68,0.3324026]
[1743400459029,1.12145704,602.67,601.68,0.3324026]
[1743400459224,0.30517709,602.66,601.68,0.3324026]
[1743400459421,2.42750496,602.66,601.68,0.3324026]
[1743400459625,0.30517709,602.65,601.68,0.3324026]
[1743400459822,1.12145704,602.65,601.68,0.3324026]
[1743400460026,0.30517709,602.64,601.68,0.3324026]
[1743400460227,2.42750496,602.64,601.68,0.3324026]
[1743400460524,0.30517709,602.63,601.68,0.3324026]
[1743400460830,1.12145704,602.63,601.68,0.3324026]
[1743400461029,0.30517709,602.62,601.68,0.3324026]
[1743400461225,1.12145704,602.62,601.68,0.3324026]
[1743400461430,0.30517709,602.61,601.68,0.3324026]
[1743400462135,5.67961517,602.61,601.68,0.3324026]
[1743400462431,2.42536491,602.6,601.68,0.3324026]
[1743400462630,0.30524043,602.59,601.68,0.3324026]
[1743400462825,1.12152038,602.59,601.68,0.3324026]
[1743400463025,0.30524043,602.58,601.68,0.3324026]
[1743400463328,5.9848556,602.58,601.68,0.3324026]
[1743400463526,2.12012448,602.57,601.68,0.3324026]
[1743400463725,0.30524043,602.56,601.68,0.3324026]
[1743400464029,0.30524217,602.55,601.68,0.3324026]
[1743400464429,2.490557,602.55,601.68,0.3324026]
[1743400464626,2.18531483,602.55,601.68,0.3324026]
[1743400465030,5.67632665,602.79,601.68,0.3324026]
[1743400465227,2.42466265,602.78,601.68,0.3324026]
[1743400465427,0.30522785,602.77,601.68,0.3324026]
[1743400465634,1.1215078,602.77,601.68,0.3324026]
[1743400465833,5.67632665,602.77,601.68,0.3324026]
[1743400466026,2.42466061,602.76,601.68,0.3324026]
[1743400466231,0.30522581,602.75,601.68,0.3324026]
[1743400466739,1.12150576,602.75,601.68,0.3324026]
[1743400466935,0.30522581,602.74,601.68,0.3324026]
[1743400467937,0.30522581,602.78,601.68,0.3324026]
[1743400468137,0.30522581,602.77,601.68,0.3324026]
[1743400468336,5.39730674,602.78,601.68,0.3324026]
[1743400468534,6.27067276,602.77,601.68,0.3324026]
[1743400468840,8.89023271,602.76,601.68,0.3324026]
[1743400469035,5.98243876,602.75,601.68,0.3324026]
[1743400469239,2.42466061,602.74,601.68,0.3324026]
[1743400469539,0.30522581,602.73,601.68,0.3324026]
[1743400469736,1.12150576,602.73,601.68,0.3324026]
[1743400469942,0.30522581,602.72,601.68,0.3324026]
[1743400470141,2.42466061,602.72,601.68,0.3324026]
[1743400470441,0.30522581,602.71,601.68,0.3324026]
[1743400470642,2.42466061,602.71,601.68,0.3324026]
[1743400470941,0.30522581,602.7,601.68,0.3324026]
[1743400471140,1.12150576,602.7,601.68,0.3324026]
[1743400471441,0.59442689,602.69,601.68,0.3324026]
[1743400471641,0.30522581,602.68,601.68,0.3324026]
[1743400471841,2.42466061,602.68,601.68,0.3324026]
[1743400472140,0.30522581,602.67,601.68,0.3324026]
[1743400472343,1.12150576,602.67,601.68,0.3324026]
[1743400472541,0.30522581,602.66,601.68,0.3324026]
[1743400472737,2.42466061,602.66,601.68,0.3324026]
[1743400472939,0.30522583,602.65,601.68,0.3324026]
[1743400473237,1.12150578,602.65,601.68,0.3324026]
[1743400473442,0.30522583,602.64,601.68,0.3324026]
[1743400473636,2.42466063,602.64,601.68,0.3324026]
[1743400473839,0.30522583,602.63,601.68,0.3324026]
[1743400474441,0.28918666,602.62,601.68,0.3324026]
[1743400474644,0.30522583,602.61,601.68,0.3324026]
[1743400475639,1.12202614,602.61,601.68,0.3324026]
[1743400475843,0.30522583,602.6,601.68,0.3324026]
[1743400476145,2.42890663,602.6,601.68,0.3324026]
[1743400476345,0.30522583,602.59,601.68,0.3324026]
[1743400476540,1.41108669,602.59,601.68,0.3324026]
[1743400476847,0.30522583,602.58,601.68,0.3324026]
[1743400477146,4.02982009,602.58,601.68,0.3324026]
[1743400477444,4.68482465,602.57,601.68,0.3324026]
[1743400477646,1.12202614,602.56,601.68,0.3324026]
[1743400477841,0.30522583,602.55,601.68,0.3324026]
[1743400478046,0.81680031,602.55,601.68,0.3324026]
[1743400478244,2.18710743,602.55,601.68,0.3324026]
[1743400478441,0.30521725,602.54,601.68,0.3324026]
[1743400478646,1.12201756,602.54,601.68,0.3324026]
[1743400478841,0.30521725,602.53,601.68,0.3324026]
[1743400479446,0.30521725,602.58,601.68,0.3324026]
[1743400479750,0.28910618,602.52,601.19,0.28929124]
[1743400479948,0.9814144,602.48,601.19,0.28929124]
[1743400480147,2.0074911,602.47,601.19,0.28929124]
[1743400480347,2.00749661,602.46,601.19,0.28929124]
[1743400480547,2.65693877,602.45,601.19,0.28929124]
[1743400480849,1.67552437,602.44,601.19,0.28929124]
[1743400481050,0.30521725,602.43,601.19,0.28929124]
[1743400481351,1.7023014,602.42,600.74,2.52044129]
[1743400481549,2.00752417,602.41,601.1,0.28932371]
[1743400481751,0.33200531,602.4,601.1,0.28932371]
[1743400481950,0.30545953,602.39,600.76,0.33291164]
[1743400482144,0.33201633,602.38,600.77,0.28703694]
[1743400482345,0.30545953,602.37,601.1,0.28932371]
[1743400482550,0.63748137,602.37,601.1,0.28932371]
[1743400482749,0.30545953,602.36,600.79,0.33289502]
[1743400482952,1.42384182,602.36,600.8,0.28704699]
[1743400483245,0.30545953,602.35,600.82,0.33287839]
[1743400483651,1.71316913,602.35,600.83,0.28704699]
[1743400483850,0.30545953,602.34,600.85,0.33286177]
[1743400484050,5.9995019,602.34,600.86,0.28704699]
[1743400484249,2.43139704,602.33,600.87,0.33285069]
[1743400484452,0.30545953,602.32,600.88,0.28704699]
[1743400484651,1.12225984,602.32,600.9,0.33283408]
[1743400484854,0.30545953,602.31,600.91,0.28704699]
[1743400485154,2.43139704,602.31,600.93,0.33281746]
[1743400485353,0.30545953,602.3,600.94,0.28704699]
[1743400485652,0.30545953,602.3,599.67,2.52044129]
[1743400485653,5.32301187,602.3,600.95,0.61982922]
[1743400485845,5.69404237,602.29,600.97,0.33279531]
[1743400486049,2.12593751,602.28,600.98,0.28702284]
[1743400486247,0.81680031,602.28,601.0,0.3327787]
[1743400486556,0.81680031,602.28,601.01,0.28702284]
[1743400486752,3.72459426,602.28,601.03,0.33276209]
[1743400486955,3.56810486,602.27,601.04,0.28702284]
[1743400487148,3.56810486,602.27,600.86,0.28928041]
[1743400487149,5.69404237,602.27,601.05,0.33275101]
[1743400487351,3.2443198,602.26,601.06,0.28699064]
[1743400487552,6.81242466,602.26,601.07,0.33273994]
[1743400487749,5.69404237,602.25,601.08,0.28699064]
[1743400487951,4.38490517,602.24,601.08,0.28699064]
[1743400488253,0.81680031,602.23,601.08,0.28699064]
[1743400488456,2.90779395,602.23,601.08,0.28699064]
[1743400488657,5.09490138,602.23,601.08,0.28699064]
[1743400488853,2.18710743,602.22,601.08,0.28699064]
[1743400489059,0.28928041,602.3,601.09,0.28697188]
[1743400489259,0.28928041,602.3,601.08,0.28697188]
[1743400489656,0.30536449,602.29,601.1,0.33272334]
[1743400489860,0.30536449,602.29,601.11,0.28697188]
[1743400490160,0.30536449,602.29,601.12,0.33271227]
[1743400490465,0.30536449,602.29,601.13,0.28697188]
[1743400491063,0.30536449,602.29,601.14,0.3327012]
[1743400491360,1.01,602.28,601.15,0.28697188]
[1743400491560,0.30536449,602.27,601.16,0.33269013]
[1743400491766,0.30536449,602.27,601.17,0.28697188]
[1743400491955,0.30536449,602.27,601.18,0.33267906]
[1743400492161,0.30536449,602.27,601.19,0.28697188]
[1743400492361,0.30536449,602.27,601.2,0.33266799]
[1743400492659,0.30537122,602.26,601.21,0.28694966]
[1743400492860,0.30537122,602.27,601.22,0.33265693]
[1743400493062,1.29923353,602.28,601.23,0.28694966]
[1743400493259,0.30537154,602.27,601.24,0.33264586]
[1743400493460,0.30537154,602.27,601.25,0.28694966]
[1743400493761,0.30537154,602.27,601.26,0.3326348]
[1743400493961,0.30537154,602.27,601.27,0.28694966]
[1743400494961,1.37030712,602.27,601.26,0.3326348]
[1743400495162,5.39719733,602.28,601.26,0.3326348]
[1743400495368,1.9351826,602.27,601.26,0.3326348]
[1743400495563,0.28937784,602.26,601.26,0.3326348]
[1743400497365,3.30841222,602.27,601.26,0.3326348]
[1743400497565,1.37322962,602.26,601.26,0.3326348]
[1743400497773,1.9351826,602.27,601.26,0.3326348]
[1743400497960,1.11838229,602.27,601.26,0.3326348]
[1743400498359,1.01,602.28,601.26,0.3326348]
[1743400498563,0.28940431,602.26,601.26,0.3326348]
[1743400500266,0.81680031,602.26,601.26,0.3326348]
[1743400500466,2.19002993,602.26,601.26,0.3326348]
[1743400501466,1.37322962,602.26,601.26,0.3326348]
[1743400501664,0.28944523,602.25,601.26,0.3326348]
[1743400503468,1.01,602.28,601.26,0.3326348]
[1743400503663,2.38322962,602.28,601.26,0.3326348]
[1743400503868,3.20002993,602.28,601.26,0.3326348]
[1743400504062,1.37322962,602.27,601.26,0.3326348]
[1743400504266,1.82680031,602.28,601.26,0.3326348]
[1743400504464,0.28940551,602.26,601.26,0.3326348]
[1743400506373,3.31029598,602.27,601.26,0.3326348]
[1743400506671,1.37322962,602.26,601.26,0.3326348]
[1743400506874,1.93706636,602.27,601.26,0.3326348]
[1743400507072,1.11838229,602.27,601.26,0.3326348]
[1743400507465,1.01,602.28,601.26,0.3326348]
[1743400507668,0.28939228,602.26,601.27,0.28693382]
[1743400507971,0.30535524,602.25,601.28,0.33262373]
[1743400508281,0.30535524,602.25,601.29,0.28693382]
[1743400508465,0.30535524,602.25,601.3,0.33261267]
[1743400508665,0.30535524,602.25,601.31,0.28693382]
[1743400508869,0.30535524,602.25,601.31,0.61954096]
[1743400509172,1.10807635,602.26,601.32,0.28693382]
[1743400509372,2.19191369,602.26,601.32,0.28693382]
[1743400509568,2.19272948,602.26,601.32,0.28693382]
[1743400509971,1.37322962,602.26,601.32,0.28693382]
[1743400510277,1.93788215,602.27,601.32,0.28693382]
[1743400510467,1.11838229,602.27,601.32,0.28693382]
[1743400510668,0.2892143,602.25,601.32,0.28693382]
[1743400512274,2.19701624,602.27,601.32,0.28693382]
[1743400512471,0.30535337,602.26,601.32,0.28693382]
[1743400513069,3.31539853,602.27,601.32,0.28693382]
[1743400513275,1.3768565,602.26,601.32,0.61953542]
[1743400513469,1.11838229,602.27,601.33,0.28693382]
[1743400513673,0.2892107,602.26,601.33,0.28693382]
[1743400515472,5.71342632,602.4,601.32,0.3326016]
[1743400515672,0.30535135,602.36,601.33,0.28692997]
[1743400516671,0.28919748,602.35,601.33,0.28692997]
[1743400516870,0.30535135,602.34,601.32,0.3326016]
[1743400517073,1.18,602.34,601.32,0.3326016]
[1743400517470,2.5568565,602.34,601.32,0.3326016]
[1743400517674,0.30536839,602.33,601.32,0.3326016]
[1743400518072,9.80122027,602.34,601.32,0.3326016]
[1743400518272,5.71342632,602.33,601.32,0.3326016]
[1743400518471,2.13280148,602.32,601.32,0.3326016]
[1743400518675,0.82015974,602.32,601.32,0.3326016]
[1743400518874,3.72795369,602.32,601.32,0.3326016]
[1743400519076,3.58062484,602.31,601.32,0.3326016]
[1743400519276,5.71342632,602.31,601.32,0.3326016]
[1743400519577,2.42211677,602.3,601.32,0.3326016]
[1743400520277,5.32991072,602.3,601.32,0.3326016]
[1743400520478,4.40078458,602.29,601.32,0.3326016]
[1743400520777,0.82115663,602.28,601.32,0.3326016]
[1743400520972,3.72895058,602.28,601.32,0.3326016]
[1743400521174,1.3768565,602.27,601.32,0.3326016]
[1743400521383,2.19801313,602.27,601.32,0.3326016]
[1743400521578,3.31639542,602.33,601.32,0.3326016]
[1743400521779,2.19801313,602.32,601.32,0.3326016]
[1743400521978,1.11838229,602.33,601.32,0.3326016]
[1743400521979,6.83665276,602.33,601.32,0.3326016]
[1743400522173,5.71827047,602.32,601.32,0.3326016]
[1743400522371,2.13529051,602.31,601.32,0.3326016]
[1743400522576,0.82115663,602.31,601.32,0.3326016]
[1743400522879,5.04308446,602.31,601.32,0.3326016]
[1743400523180,3.58297996,602.3,601.32,0.3326016]
[1743400523378,0.82115663,602.29,601.32,0.3326016]
[1743400523678,2.19801313,602.3,601.32,0.3326016]
[1743400524275,3.31639542,602.33,601.32,0.3326016]
[1743400524977,1.11838229,602.33,601.32,0.3326016]
[1743400525375,1.18,602.34,601.32,0.3326016]
[1743400525574,0.28926479,602.33,601.32,0.3326016]
[1743400529182,0.28926479,602.33,601.33,0.28686188]
[1743400529482,0.28926479,602.33,601.32,0.3326016]
[1743400530282,1.18,602.34,601.32,0.3326016]
[1743400531683,0.28930086,602.33,601.32,0.3326016]
[1743400533182,0.28930086,602.33,601.33,0.28690919]
[1743400533483,1.18,602.34,601.33,0.28690919]
[1743400533684,0.28920349,602.32,601.33,0.28690919]
[1743400533885,0.28920349,602.32,601.32,0.62180509]
[1743400534285,0.28920349,602.32,601.33,0.28690919]
[1743400534488,0.28920349,602.32,601.33,0.61950526]
[1743400534688,0.28920349,602.32,601.34,0.28690919]
[1743400534882,0.28920349,602.32,601.33,0.33259607]
[1743400535086,0.28920349,602.32,601.34,0.28690889]
[1743400535688,0.28920349,602.32,601.35,0.33258501]
[1743400535888,1.11199511,602.32,601.36,0.28690889]
[1743400536088,4.01978906,602.32,601.37,0.33257395]
[1743400536287,4.41032464,602.31,601.38,0.28690889]
[1743400536481,0.82279162,602.3,601.38,0.28690889]
[1743400536686,3.73058557,602.3,601.38,0.28690889]
[1743400536887,1.37982039,602.29,601.38,0.28690889]
[1743400537081,2.20261201,602.29,601.38,0.28690889]
[1743400537485,0.28918666,602.31,601.38,0.28690889]
[1743400538884,0.28918666,602.31,601.39,0.33256289]
[1743400539088,0.28918666,602.31,601.4,0.28690889]
[1743400539283,1.66900705,602.31,601.4,0.61946625]
[1743400539485,3.80908961,602.31,601.41,0.28690889]
[1743400539690,0.30530922,602.3,601.41,0.28690889]
[1743400539884,5.73139338,602.3,601.41,0.28690889]
[1743400540089,0.82279162,602.29,601.41,0.28690889]
[1743400540388,2.90779395,602.29,601.41,0.28690889]
[1743400540589,7.32189639,602.29,601.41,0.28690889]
[1743400540789,4.41410244,602.28,601.41,0.28690889]
[1743400540986,2.20261201,602.27,601.41,0.28690889]
[1743400541189,2.90779395,602.27,601.41,0.28690889]
[1743400541589,5.11040596,602.27,601.41,0.28690889]
[1743400541789,2.20261201,602.26,601.41,0.28690889]
[1743400542298,2.20261201,602.26,601.42,0.28688127]
[1743400542592,0.82279162,602.44,601.43,0.28688127]
[1743400542786,0.28918186,602.28,601.41,0.28688127]
[1743400542991,1.11838229,602.43,601.41,0.28688127]
[1743400543292,0.30529576,602.42,601.41,0.28688127]
[1743400543685,1.42367805,602.44,601.41,0.28688127]
[1743400543895,0.30529475,602.43,601.42,0.28687387]
[1743400544193,0.30529475,602.43,601.43,0.28687387]
[1743400544194,1.11838229,602.42,601.43,0.28687387]
[1743400544491,1.42367704,602.41,601.41,0.28687387]
[1743400544693,0.30529475,602.4,601.42,0.28687387]
[1743400544891,1.42367704,602.4,601.41,0.28687387]
[1743400545091,2.84067704,602.39,601.41,0.28687387]
[1743400545391,0.30529475,602.38,601.41,0.28687387]
[1743400545991,4.71945338,602.38,601.41,0.28687387]
[1743400546191,3.2130887,602.37,601.41,0.28687387]
[1743400546388,0.30529475,602.36,601.41,0.6194257]
[1743400546592,5.00861721,602.36,601.42,0.28687387]
[1743400546892,6.02064578,602.36,601.42,0.28687387]
[1743400547094,2.14387467,602.35,601.42,0.61942017]
[1743400547290,5.05166862,602.35,601.43,0.28687387]
[1743400547491,3.59136701,602.34,601.43,0.28687387]
[1743400547688,5.73524168,602.34,601.43,0.28687387]
[1743400547891,1.94294947,602.33,601.43,0.28687387]
[1743400548095,5.53431648,602.33,601.43,0.28687387]
[1743400548296,0.82456718,602.32,601.43,0.28687387]
[1743400548596,3.73236113,602.32,601.43,0.28687387]
[1743400548795,1.37982039,602.31,601.43,0.28687387]
[1743400548989,2.20438757,602.31,601.43,0.28687387]
[1743400549591,0.28916864,602.3,601.43,0.28687387]
[1743400551399,2.14375111,602.34,601.43,0.28687387]
[1743400551603,0.28917825,602.29,601.43,0.28687387]
[1743400553901,1.11374543,602.29,601.43,0.28687387]
[1743400554104,2.49356582,602.29,601.43,0.28687387]
[1743400554305,2.20438757,602.29,601.43,0.28687387]
[1743400554702,5.73756024,602.37,601.43,0.28687387]
[1743400554905,2.14348965,602.36,601.43,0.28687387]
[1743400555100,3.73236113,602.36,601.43,0.28687387]
[1743400555303,3.59407059,602.35,601.43,0.28687387]
[1743400555505,5.73756024,602.35,601.43,0.28687387]
[1743400555703,5.73756024,602.34,601.43,0.28687387]
[1743400555907,5.73756024,602.33,601.43,0.28687387]
[1743400556109,4.41863777,602.32,601.43,0.28687387]
[1743400556409,7.32643172,602.31,601.43,0.28687387]
[1743400556606,4.41863777,602.3,601.43,0.28687387]
[1743400556803,0.82456718,602.29,601.43,0.28687387]
[1743400557003,2.20438757,602.29,601.43,0.28687387]
[1743400557404,5.73767158,602.37,601.43,0.28687387]
[1743400557704,2.14353007,602.36,601.43,0.28687387]
[1743400557910,3.73236113,602.36,601.43,0.28687387]
[1743400558212,3.59414151,602.35,601.43,0.28687387]
[1743400558410,5.73767158,602.35,601.43,0.28687387]
[1743400558610,3.55107139,602.34,601.44,0.33253524]
[1743400558811,7.1452129,602.34,601.45,0.28687387]
[1743400559010,5.73767158,602.33,601.45,0.28687387]
[1743400559214,4.41870869,602.32,601.45,0.28687387]
[1743400559412,0.82456718,602.31,601.45,0.28687387]
[1743400559613,3.73236113,602.31,601.45,0.28687387]
[1743400559807,1.37982039,602.3,601.45,0.28687387]
[1743400560016,2.20438757,602.3,601.44,0.33253524]
[1743400560207,2.20438757,602.3,601.45,0.28685848]
[1743400560612,5.7391107,602.37,601.45,0.28685848]
[1743400560805,5.74432194,602.36,601.45,0.28685848]
[1743400561012,5.74432194,602.35,601.45,0.28685848]
[1743400561313,2.14433055,602.34,601.44,0.33253524]
[1743400561510,2.43348718,602.34,601.45,0.2868595]
[1743400561713,0.28915663,602.34,601.45,0.2868595]
[1743400562013,5.0521245,602.34,601.45,0.2868595]
[1743400562213,4.42477444,602.33,601.45,0.2868595]
[1743400562408,0.82474252,602.32,601.45,0.2868595]
[1743400562614,3.73253647,602.32,601.45,0.2868595]
[1743400562814,1.38462766,602.31,601.45,0.2868595]
[1743400563113,2.20937018,602.31,601.45,0.2868595]
[1743400563509,2.20926819,602.31,601.45,0.2868595]
[1743400563715,3.82241565,602.38,601.45,0.2868595]
[1743400563923,3.59976675,602.37,601.45,0.2868595]
[1743400564214,3.52877588,602.37,601.45,0.2868595]
[1743400564514,1.11838229,602.36,601.45,0.2868595]
[1743400564714,3.2626325,602.36,601.45,0.2868595]
[1743400564913,6.86239925,602.36,601.45,0.2868595]
[1743400565109,1.38452567,602.35,601.45,0.2868595]
[1743400565717,3.52877588,602.35,601.45,0.2868595]
[1743400566317,2.20926819,602.35,601.45,0.2868595]
[1743400566617,0.82466385,602.35,601.45,0.2868595]
[1743400567419,1.38458923,602.35,601.45,0.2868595]
[1743400567619,0.82466385,602.35,601.45,0.2868595]
[1743400567819,3.52871524,602.35,601.45,0.2868595]
[1743400568019,6.43650919,602.35,601.45,0.2868595]
[1743400568218,5.74405802,602.34,601.45,0.2868595]
[1743400568414,5.74405802,602.34,601.44,0.33253524]
[1743400568415,2.14412601,602.33,601.44,0.33253524]
[1743400568621,3.7324578,602.33,601.45,0.28686553]
[1743400568921,3.59993201,602.32,601.45,0.28686553]